[Event "HUN-chT Youth 2019"]
[Site "Budapest"]
[Date "2019.10.27"]
[Round "3.3"]
[White "Kelemen, Szabolcs"]
[Black "Tancsa, Tamas"]
[Result "1/2-1/2"]
[ECO "C44"]
[WhiteElo "1960"]
[BlackElo "2082"]
[Annotator "NA"]
[PlyCount "66"]
[EventDate "2019.10.26"]
[EventType "team-tourn"]
[EventCountry "HUN"]
[SourceTitle "playchess.com"]
[Source "ChessBase"]
[SourceQuality "1"]
[TimeControl "5400+30"]

1. e4 {[%emt 0:11:54]} e5 {[%emt 0:00:00]} 2. Nf3 {[%emt 0:00:06]} Nc6 {[%emt 0:00:00]} 3. c3 {[%emt 0:00:11]} f5 {[%emt 0:01:30]} 4. d4 {[%emt 0:03:42]} fxe4 {[%emt 0:07:20]} 5. Nxe5 {[%emt 0:00:58]} Nf6 {[%emt 0:01:49]} 6. Be2 {[%emt 0:12:18]} g6 {[%emt 0:02:17]} 7. Bg5 {[%emt 0:09:05]} Bg7 {[%emt 0:01:07]} 8. Nd2 {[%emt 0:00:30]} d5 {[%emt 0:01:13]} 9. Qb3 {[%emt 0:05:22]} Qd6 {[%emt 0:08:15]} 10. Nxc6 {[%emt 0:05:27]} bxc6 {[%emt 0:00:21]} 11. O-O-O {[%emt 0:00:21]} Be6 {[%emt 0:01:32]} 12. h4 {[%emt 0:04:13]} O-O {[%emt 0:01:21]} 13. Qc2 {[%emt 0:01:13]} a5 {[%emt 0:07:39]} 14. f3 {[%emt 0:03:42]} exf3 {[%emt 0:02:01]} 15. Nxf3 {[%emt 0:02:34]} Nh5 {[%emt 0:00:22]} 16. Bd3 {[%emt 0:01:54]} Nf4 {[%emt 0:02:25]} 17. Bxf4 {[%emt 0:01:25]} Qxf4+ {[%emt 0:00:17]} 18. Kb1 {[%emt 0:00:05]} Bg4 {[%emt 0:02:29]} 19. h5 {[%emt 0:06:39]} Bxf3 {[%emt 0:09:34]} 20. gxf3 {[%emt 0:00:15]} Qxf3 {[%emt 0:01:03]} 21. hxg6 {[%emt 0:00:16]} h6 {[%emt 0:00:16]} 22. Rdf1 {[%emt 0:03:03]} Qg3 {[%emt 0:01:35]} 23. Bf5 {[%emt 0:03:39]} Qd6 {[%emt 0:03:17]} 24. Qd2 {[%emt 0:02:39]} Rf6 {[%emt 0:11:44]} 25. Bd3 {[%emt 0:14:47]} Raf8 {[%emt 0:02:17]} 26. Rxf6 {[%emt 0:00:20]} Rxf6 {[%emt 0:00:25]} 27. Re1 {[%emt 0:01:33]} Rf8 {[%emt 0:01:51]} 28. Qe2 {[%emt 0:00:15]} c5 {[%emt 0:01:00]} 29. dxc5 {[%emt 0:01:34]} Qxc5 {[%emt 0:01:06]} 30. Qe6+ {[%emt 0:00:12]} Kh8 {[%emt 0:00:34]} 31. Qd7 {[%emt 0:00:27]} c6 {[%emt 0:12:04]} 32. Re7 {[%emt 0:01:19]} Qg1+ {[%emt 0:00:38]} 33. Kc2 {[%emt 0:00:03]} Qf2+ {[%emt 0:00:56]} 1/2-1/2

[Event "HUN-chT Youth 2019"]
[Site "Budapest"]
[Date "2019.10.27"]
[Round "3.3"]
[White "Csernyik, Mark"]
[Black "Nagy, Botond"]
[Result "0-1"]
[ECO "B21"]
[WhiteElo "1749"]
[BlackElo "1281"]
[Annotator "NA"]
[PlyCount "177"]
[EventDate "2019.10.26"]
[EventType "team-tourn"]
[EventCountry "HUN"]
[SourceTitle "playchess.com"]
[Source "ChessBase"]
[SourceQuality "1"]
[TimeControl "5400+30"]

1. e4 {[%emt 0:00:00]} c5 {[%emt 0:00:00]} 2. d4 {[%emt 0:00:07]} cxd4 {[%emt 0:00:00]} 3. c3 {[%emt 0:00:13]} dxc3 {[%emt 0:00:29]} 4. Nxc3 {[%emt 0:00:06]} Nc6 {[%emt 0:00:35]} 5. Nf3 {[%emt 0:00:09]} e6 {[%emt 0:00:36]} 6. Bc4 {[%emt 0:00:16]} Qc7 {[%emt 0:00:23]} 7. Qe2 {[%emt 0:00:43]} Bc5 {[%emt 0:01:18]} 8. O-O {[%emt 0:01:01]} Nf6 {[%emt 0:00:57]} 9. Nb5 {[%emt 0:01:55]} Qb8 {[%emt 0:03:35]} 10. Bg5 {[%emt 0:00:49]} Be7 {[%emt 0:02:09]} 11. e5 {[%emt 0:01:09]} a6 {[%emt 0:02:28]} 12. exf6 {[%emt 0:04:29]} axb5 {[%emt 0:00:18]} 13. fxg7 {[%emt 0:01:25]} Rg8 {[%emt 0:00:29]} 14. Bxb5 {[%emt 0:01:11]} Rxg7 {[%emt 0:02:12]} 15. Bxe7 {[%emt 0:00:20]} Nxe7 {[%emt 0:00:48]} 16. Rfd1 {[%emt 0:00:39]} Nf5 {[%emt 0:02:11]} 17. Rac1 {[%emt 0:00:48]} Ke7 {[%emt 0:03:00]} 18. Qd3 {[%emt 0:10:13]} d5 {[%emt 0:01:14]} 19. Nd4 {[%emt 0:01:46]} Nd6 {[%emt 0:02:10]} 20. Qc3 {[%emt 0:01:19]} Bd7 {[%emt 0:01:10]} 21. Bxd7 {[%emt 0:01:06]} Kxd7 {[%emt 0:01:04]} 22. Nc6 {[%emt 0:02:37]} Qg8 {[%emt 0:01:14]} 23. Ne5+ {[%emt 0:00:59]} Ke8 {[%emt 0:01:18]} 24. g3 {[%emt 0:00:32]} Ne4 {[%emt 0:01:58]} 25. Qc7 {[%emt 0:01:47]} f6 {[%emt 0:00:11]} 26. Qc8+ {[%emt 0:00:39]} Rxc8 {[%emt 0:00:56]} 27. Rxc8+ {[%emt 0:00:08]} Ke7 {[%emt 0:00:06]} 28. Rxg8 {[%emt 0:00:17]} Rxg8 {[%emt 0:00:09]} 29. Nd3 {[%emt 0:00:32]} e5 {[%emt 0:01:52]} 30. Rc1 {[%emt 0:02:05]} Kd6 {[%emt 0:01:22]} 31. f3 {[%emt 0:01:47]} Nd2 {[%emt 0:00:46]} 32. Kf2 {[%emt 0:00:22]} Nc4 {[%emt 0:00:31]} 33. b3 {[%emt 0:00:33]} Na5 {[%emt 0:01:16]} 34. Nc5 {[%emt 0:02:24]} b5 {[%emt 0:01:00]} 35. Nd3 {[%emt 0:03:13]} Nb7 {[%emt 0:02:25]} 36. Ke2 {[%emt 0:02:14]} Rg7 {[%emt 0:00:56]} 37. g4 {[%emt 0:01:00]} Rc7 {[%emt 0:00:52]} 38. Rxc7 {[%emt 0:00:09]} Kxc7 {[%emt 0:00:14]} 39. g5 {[%emt 0:00:05]} fxg5 {[%emt 0:00:51]} 40. Nxe5 {[%emt 0:00:08]} Nd6 {[%emt 0:00:34]} 41. Kd3 {[%emt 0:01:43]} Nf5 {[%emt 0:00:43]} 42. b4 {[%emt 0:01:05]} h6 {[%emt 0:00:26]} 43. Ng4 {[%emt 0:01:40]} Kd6 {[%emt 0:01:09]} 44. Nf2 {[%emt 0:03:59]} Nh4 {[%emt 0:01:01]} 45. Ke3 {[%emt 0:02:27]} Nf5+ {[%emt 0:01:04]} 46. Kd3 {[%emt 0:00:12]} Ke5 {[%emt 0:01:05]} 47. Nh3 {[%emt 0:00:34]} Nh4 {[%emt 0:04:53]} 48. Ke3 {[%emt 0:02:40]} Nf5+ {[%emt 0:00:26]} 49. Kd3 {[%emt 0:00:37]} Nd6 {[%emt 0:01:08]} 50. Ke3 {[%emt 0:00:26]} Nc4+ {[%emt 0:00:19]} 51. Kd3 {[%emt 0:00:15]} d4 {[%emt 0:01:11]} 52. Ng1 {[%emt 0:01:24]} Nb2+ {[%emt 0:00:58]} 53. Kc2 {[%emt 0:00:28]} Nc4 {[%emt 0:00:36]} 54. Kd3 {[%emt 0:00:10]} Nb2+ {[%emt 0:00:11]} 55. Kc2 {[%emt 0:00:07]} Nc4 {[%emt 0:00:31]} 56. Kd3 {[%emt 0:00:11]} Kd5 {[%emt 0:01:51]} 57. Ne2 {[%emt 0:00:26]} Nb2+ {[%emt 0:00:16]} 58. Kd2 {[%emt 0:00:15]} Ke5 {[%emt 0:01:18]} 59. Nc1 {[%emt 0:01:05]} Kd5 {[%emt 0:01:23]} 60. Kc2 {[%emt 0:01:24]} Nc4 {[%emt 0:00:17]} 61. Kd3 {[%emt 0:00:53]} Ne5+ {[%emt 0:00:24]} 62. Ke2 {[%emt 0:00:50]} Kc4 {[%emt 0:00:19]} 63. Nb3 {[%emt 0:14:38]} Kc3 {[%emt 0:01:21]} 64. Nc5 {[%emt 0:01:27]} Kxb4 {[%emt 0:00:25]} 65. Ne4 {[%emt 0:01:53]} Ka3 {[%emt 0:01:07]} 66. h4 {[%emt 0:01:11]} gxh4 {[%emt 0:01:37]} 67. f4 {[%emt 0:00:09]} Nf7 {[%emt 0:00:22]} 68. Kd3 {[%emt 0:00:32]} Kxa2 {[%emt 0:00:06]} 69. Kxd4 {[%emt 0:00:54]} b4 {[%emt 0:00:09]} 70. Ke3 {[%emt 0:00:35]} b3 {[%emt 0:00:15]} 71. Kf3 {[%emt 0:00:18]} Kb2 {[%emt 0:00:36]} 72. Nd2 {[%emt 0:00:48]} h5 {[%emt 0:00:13]} 73. Kg2 {[%emt 0:00:15]} Nh6 {[%emt 0:00:10]} 74. Nc4+ {[%emt 0:01:36]} Kc3 {[%emt 0:00:27]} 75. Ne3 {[%emt 0:00:42]} b2 {[%emt 0:00:07]} 76. Nd1+ {[%emt 0:00:23]} Kc2 {[%emt 0:00:11]} 77. Nxb2 {[%emt 0:00:13]} Kxb2 {[%emt 0:00:05]} 78. Kf3 {[%emt 0:00:14]} Nf5 {[%emt 0:00:20]} 79. Kg2 {[%emt 0:00:10]} Kc3 {[%emt 0:00:14]} 80. Kh3 {[%emt 0:00:09]} Kd4 {[%emt 0:00:06]} 81. Kg2 {[%emt 0:00:09]} Ke3 {[%emt 0:00:08]} 82. Kh3 {[%emt 0:00:12]} Kxf4 {[%emt 0:00:10]} 83. Kh2 {[%emt 0:00:05]} Kf3 {[%emt 0:00:19]} 84. Kh3 {[%emt 0:00:06]} Ng3 {[%emt 0:00:43]} 85. Kxh4 {[%emt 0:00:12]} Kg2 {[%emt 0:00:12]} 86. Kg5 {[%emt 0:00:15]} Kh3 {[%emt 0:00:08]} 87. Kf4 {[%emt 0:00:05]} h4 {[%emt 0:00:07]} 88. Kf3 {[%emt 0:00:11]} Ne4 {[%emt 0:00:15]} 89. Kf4 0-1

[Event "HUN-chT Youth 2019"]
[Site "Budapest"]
[Date "2019.10.27"]
[Round "3.4"]
[White "Forgacs, Attila Jr."]
[Black "Tancz, Janos"]
[Result "1-0"]
[ECO "B38"]
[WhiteElo "2104"]
[BlackElo "1486"]
[Annotator "NA"]
[PlyCount "93"]
[EventDate "2019.10.26"]
[EventType "team-tourn"]
[EventCountry "HUN"]
[SourceTitle "playchess.com"]
[Source "ChessBase"]
[SourceQuality "1"]
[TimeControl "5400+30"]

1. e4 {[%emt 0:00:00]} c5 {[%emt 0:00:00]} 2. Nf3 {[%emt 0:00:00]} Nc6 {[%emt 0:00:00]} 3. d4 {[%emt 0:00:00]} cxd4 {[%emt 0:00:00]} 4. Nxd4 {[%emt 0:00:00]} g6 {[%emt 0:00:00]} 5. c4 {[%emt 0:01:40]} Bg7 {[%emt 0:00:01]} 6. Be3 Nf6 {[%emt 0:00:18]} 7. Nc3 {[%emt 0:00:41]} O-O {[%emt 0:00:17]} 8. f3 {[%emt 0:00:46]} d6 {[%emt 0:00:14]} 9. Be2 {[%emt 0:00:45]} Bd7 {[%emt 0:00:09]} 10. Qd2 {[%emt 0:00:32]} Qa5 {[%emt 0:01:14]} 11. O-O {[%emt 0:07:10]} Rac8 {[%emt 0:04:58]} 12. Rac1 {[%emt 0:01:35]} a6 {[%emt 0:10:58]} 13. Rfd1 {[%emt 0:03:26]} Qd8 {[%emt 0:09:30]} 14. a3 {[%emt 0:06:09]} Na5 {[%emt 0:02:03]} 15. b4 {[%emt 0:14:39]} Nxc4 {[%emt 0:00:38]} 16. Bxc4 {[%emt 0:00:08]} Rxc4 {[%emt 0:00:07]} 17. Qd3 {[%emt 0:02:02]} b5 {[%emt 0:05:13]} 18. Nb3 {[%emt 0:04:58]} Be6 {[%emt 0:04:47]} 19. e5 {[%emt 0:04:45]} Nd7 {[%emt 0:01:50]} 20. exd6 {[%emt 0:01:10]} exd6 {[%emt 0:00:11]} 21. Na5 {[%emt 0:03:58]} Rxc3 {[%emt 0:02:39]} 22. Rxc3 {[%emt 0:00:26]} Bxc3 {[%emt 0:00:08]} 23. Qxc3 {[%emt 0:00:22]} Qc8 {[%emt 0:00:18]} 24. Nc6 {[%emt 0:03:27]} Qe8 {[%emt 0:02:41]} 25. Bh6 {[%emt 0:04:26]} f6 {[%emt 0:02:54]} 26. Bxf8 {[%emt 0:01:15]} Qxf8 {[%emt 0:01:22]} 27. Re1 {[%emt 0:05:14]} Ne5 {[%emt 0:06:15]} 28. Nxe5 {[%emt 0:01:10]} dxe5 {[%emt 0:00:54]} 29. Qc6 {[%emt 0:01:15]} Qc8 {[%emt 0:01:11]} 30. Qxc8+ {[%emt 0:01:07]} Bxc8 {[%emt 0:00:08]} 31. Rc1 {[%emt 0:00:16]} Bb7 {[%emt 0:00:31]} 32. Rc7 {[%emt 0:00:33]} Bd5 {[%emt 0:00:08]} 33. Ra7 {[%emt 0:00:30]} Bc4 {[%emt 0:02:19]} 34. Rxa6 {[%emt 0:00:18]} Kg7 {[%emt 0:00:10]} 35. Ra7+ {[%emt 0:00:45]} Kh6 {[%emt 0:00:16]} 36. a4 {[%emt 0:00:40]} bxa4 {[%emt 0:00:51]} 37. Rxa4 {[%emt 0:00:17]} f5 {[%emt 0:00:20]} 38. Ra5 {[%emt 0:00:29]} e4 {[%emt 0:00:23]} 39. fxe4 {[%emt 0:00:24]} fxe4 {[%emt 0:00:13]} 40. Re5 {[%emt 0:00:38]} Kg7 {[%emt 0:02:33]} 41. Rxe4 {[%emt 0:00:30]} Bd3 {[%emt 0:00:36]} 42. Re7+ {[%emt 0:00:33]} Kg8 {[%emt 0:00:36]} 43. Rb7 {[%emt 0:01:18]} h5 {[%emt 0:02:22]} 44. b5 {[%emt 0:00:22]} Kf8 {[%emt 0:00:14]} 45. b6 {[%emt 0:00:25]} Ke8 {[%emt 0:00:29]} 46. Rh7 {[%emt 0:00:39]} Be4 {[%emt 0:00:27]} 47. b7 {[%emt 0:00:11]} 1-0

[Event "HUN-chT Youth 2019"]
[Site "Budapest"]
[Date "2019.10.27"]
[Round "3.4"]
[White "Nagy, Levente"]
[Black "Karacsonyi, Bank"]
[Result "0-1"]
[ECO "B90"]
[WhiteElo "2092"]
[BlackElo "1513"]
[Annotator "NA"]
[PlyCount "76"]
[EventDate "2019.10.26"]
[EventType "team-tourn"]
[EventCountry "HUN"]
[SourceTitle "playchess.com"]
[Source "ChessBase"]
[SourceQuality "1"]
[TimeControl "5400+30"]

1. e4 {[%emt 0:00:00]} c5 {[%emt 0:00:00]} 2. Nf3 {[%emt 0:00:25]} d6 {[%emt 0:00:00]} 3. d4 {[%emt 0:00:21]} cxd4 {[%emt 0:00:08]} 4. Nxd4 {[%emt 0:00:27]} Nf6 {[%emt 0:00:10]} 5. Nc3 {[%emt 0:01:24]} a6 {[%emt 0:00:12]} 6. Bd3 {[%emt 0:01:49]} e5 {[%emt 0:03:03]} 7. Nb3 {[%emt 0:02:28]} Be6 {[%emt 0:01:19]} 8. Bg5 {[%emt 0:03:02]} Nc6 {[%emt 0:01:40]} 9. Nd5 {[%emt 0:06:10]} Be7 {[%emt 0:05:27]} 10. Nxe7 {[%emt 0:06:38]} Qxe7 {[%emt 0:00:59]} 11. Qd2 {[%emt 0:06:15]} O-O {[%emt 0:03:15]} 12. O-O {[%emt 0:03:01]} b5 {[%emt 0:04:30]} 13. Rfe1 {[%emt 0:04:29]} Rac8 {[%emt 0:02:41]} 14. Re3 {[%emt 0:05:40]} h6 {[%emt 0:03:21]} 15. Bh4 {[%emt 0:01:55]} g5 {[%emt 0:01:42]} 16. Bg3 {[%emt 0:03:56]} Rfd8 {[%emt 0:00:38]} 17. h3 {[%emt 0:07:36]} d5 {[%emt 0:06:24]} 18. exd5 {[%emt 0:05:45]} Bxd5 {[%emt 0:01:41]} 19. Qe2 {[%emt 0:01:34]} e4 {[%emt 0:00:48]} 20. Qe1 {[%emt 0:06:09]} Re8 {[%emt 0:04:22]} 21. c3 {[%emt 0:04:33]} Nh5 {[%emt 0:01:45]} 22. Bh2 {[%emt 0:02:14]} f5 {[%emt 0:02:19]} 23. Qd1 {[%emt 0:03:39]} Nf6 {[%emt 0:00:30]} 24. Rc1 {[%emt 0:02:58]} Rcd8 {[%emt 0:01:32]} 25. Qf1 {[%emt 0:01:35]} Bxb3 {[%emt 0:00:55]} 26. axb3 {[%emt 0:01:04]} Rxd3 {[%emt 0:00:27]} 27. Rxd3 {[%emt 0:00:32]} exd3 {[%emt 0:00:09]} 28. Qxd3 {[%emt 0:00:24]} Qe4 {[%emt 0:00:46]} 29. Qf1 {[%emt 0:01:20]} f4 {[%emt 0:00:22]} 30. f3 {[%emt 0:01:34]} Qe3+ {[%emt 0:00:11]} 31. Kh1 {[%emt 0:00:48]} Qe2 {[%emt 0:02:08]} 32. Qxe2 {[%emt 0:02:06]} Rxe2 {[%emt 0:00:03]} 33. Rb1 {[%emt 0:00:16]} Ne5 {[%emt 0:00:17]} 34. Bg1 {[%emt 0:00:48]} Nh5 {[%emt 0:00:35]} 35. Bd4 {[%emt 0:00:37]} Ng3+ {[%emt 0:00:23]} 36. Kg1 {[%emt 0:00:19]} Nd3 {[%emt 0:00:05]} 37. c4 {[%emt 0:00:33]} Rc2 {[%emt 0:01:46]} 38. cxb5 {[%emt 0:01:14]} Ne2+ {[%emt 0:00:09]} 0-1

[Event "HUN-chT Youth 2019"]
[Site "Budapest"]
[Date "2019.10.27"]
[Round "3.5"]
[White "Karacsonyi, Luca"]
[Black "Toth, Timea"]
[Result "1/2-1/2"]
[ECO "B30"]
[WhiteElo "1556"]
[BlackElo "1964"]
[Annotator "NA"]
[PlyCount "131"]
[EventDate "2019.10.26"]
[EventType "team-tourn"]
[EventCountry "HUN"]
[SourceTitle "playchess.com"]
[Source "ChessBase"]
[SourceQuality "1"]
[TimeControl "5400+30"]

1. e4 {[%emt 0:00:00]} c5 {[%emt 0:00:00]} 2. Nf3 {[%emt 0:00:03]} Nc6 {[%emt 0:00:00]} 3. Nc3 {[%emt 0:00:43]} g6 {[%emt 0:00:00]} 4. h4 {[%emt 0:00:09]} Nf6 {[%emt 0:00:45]} 5. e5 {[%emt 0:00:12]} Ng4 {[%emt 0:01:05]} 6. Ne4 {[%emt 0:10:39]} Ngxe5 {[%emt 0:02:50]} 7. Nxc5 {[%emt 0:01:15]} Bg7 {[%emt 0:00:40]} 8. Nxe5 {[%emt 0:01:29]} Nxe5 {[%emt 0:00:41]} 9. d4 {[%emt 0:00:14]} Nc6 {[%emt 0:01:25]} 10. Be3 {[%emt 0:00:24]} d6 {[%emt 0:12:33]} 11. Ne4 {[%emt 0:00:26]} Nb4 {[%emt 0:22:48]} 12. c3 {[%emt 0:03:42]} Bf5 {[%emt 0:06:00]} 13. Bb5+ {[%emt 0:04:07]} Nc6 {[%emt 0:05:12]} 14. Ng3 {[%emt 0:02:59]} Bd7 {[%emt 0:01:13]} 15. h5 {[%emt 0:00:39]} Qc7 {[%emt 0:03:23]} 16. d5 {[%emt 0:05:48]} Ne5 {[%emt 0:01:05]} 17. Bxd7+ {[%emt 0:00:31]} Qxd7 {[%emt 0:01:03]} 18. Bd4 {[%emt 0:00:41]} O-O {[%emt 0:01:15]} 19. f4 {[%emt 0:01:02]} Qg4 {[%emt 0:08:45]} 20. Qxg4 {[%emt 0:01:38]} Nxg4 {[%emt 0:01:15]} 21. Bxg7 {[%emt 0:01:12]} Kxg7 {[%emt 0:00:52]} 22. Ke2 {[%emt 0:01:02]} Nf6 {[%emt 0:02:00]} 23. c4 {[%emt 0:01:55]} Rac8 {[%emt 0:03:11]} 24. b3 {[%emt 0:00:34]} a6 {[%emt 0:01:23]} 25. Kd3 {[%emt 0:02:34]} b5 {[%emt 0:02:43]} 26. hxg6 {[%emt 0:00:56]} fxg6 {[%emt 0:00:20]} 27. Rhe1 {[%emt 0:02:08]} Rfe8 {[%emt 0:01:39]} 28. Kd4 {[%emt 0:01:25]} Kf7 {[%emt 0:01:00]} 29. cxb5 {[%emt 0:01:15]} axb5 {[%emt 0:00:12]} 30. Rec1 {[%emt 0:00:25]} h6 {[%emt 0:06:03]} 31. a4 {[%emt 0:04:12]} bxa4 {[%emt 0:01:34]} 32. bxa4 {[%emt 0:00:34]} Nd7 {[%emt 0:00:32]} 33. Rc6 {[%emt 0:05:48]} Nb8 {[%emt 0:02:50]} 34. Rc4 {[%emt 0:03:43]} Na6 {[%emt 0:01:23]} 35. Ne4 {[%emt 0:03:39]} Rxc4+ {[%emt 0:02:04]} 36. Kxc4 {[%emt 0:00:10]} Rb8 {[%emt 0:00:07]} 37. Nd2 {[%emt 0:11:53]} Rb4+ {[%emt 0:01:04]} 38. Kc3 {[%emt 0:00:43]} Rxf4 {[%emt 0:01:08]} 39. Rf1 {[%emt 0:00:07]} Rxf1 {[%emt 0:00:23]} 40. Nxf1 {[%emt 0:00:21]} Ke8 {[%emt 0:00:19]} 41. Kc4 {[%emt 0:00:29]} Kd7 {[%emt 0:00:12]} 42. Kb5 {[%emt 0:00:10]} Nc7+ {[%emt 0:00:20]} 43. Kc4 {[%emt 0:00:27]} Kc8 {[%emt 0:00:06]} 44. a5 {[%emt 0:00:10]} Kb7 {[%emt 0:00:14]} 45. Nd2 {[%emt 0:00:47]} Ka6 {[%emt 0:00:49]} 46. Nb3 {[%emt 0:00:09]} h5 {[%emt 0:00:18]} 47. Kd4 {[%emt 0:00:31]} g5 {[%emt 0:01:45]} 48. Ke4 {[%emt 0:00:19]} Kb5 {[%emt 0:00:44]} 49. Kf5 {[%emt 0:04:28]} g4 {[%emt 0:01:07]} 50. g3 {[%emt 0:01:19]} Nxd5 {[%emt 0:00:29]} 51. Ke6 {[%emt 0:01:10]} Ne3 {[%emt 0:01:08]} 52. Nd4+ {[%emt 0:00:19]} Kxa5 {[%emt 0:00:27]} 53. Kxe7 {[%emt 0:00:52]} d5 {[%emt 0:01:42]} 54. Ne6 {[%emt 0:00:43]} Nf5+ {[%emt 0:00:59]} 55. Kf6 {[%emt 0:01:24]} Nxg3 {[%emt 0:00:54]} 56. Ke5 {[%emt 0:00:22]} h4 {[%emt 0:00:30]} 57. Kf4 {[%emt 0:00:49]} h3 {[%emt 0:01:28]} 58. Kxg3 {[%emt 0:00:09]} Kb4 {[%emt 0:00:22]} 59. Nd4 {[%emt 0:01:44]} Kc4 {[%emt 0:00:17]} 60. Nf5 {[%emt 0:00:49]} d4 {[%emt 0:00:37]} 61. Kxg4 {[%emt 0:00:42]} h2 {[%emt 0:00:39]} 62. Ng3 {[%emt 0:00:04]} d3 {[%emt 0:00:13]} 63. Kf3 {[%emt 0:00:14]} Kc3 {[%emt 0:00:41]} 64. Kg2 {[%emt 0:00:27]} Kd4 {[%emt 0:01:15]} 65. Nf1 {[%emt 0:00:12]} Ke4 {[%emt 0:00:28]} 66. Kxh2 {[%emt 0:00:10]} 1/2-1/2

[Event "HUN-chT Youth 2019"]
[Site "Budapest"]
[Date "2019.10.27"]
[Round "3.5"]
[White "Palczert, Hajnalka"]
[Black "Toth, Nikoletta"]
[Result "0-1"]
[ECO "A06"]
[WhiteElo "1531"]
[BlackElo "1965"]
[Annotator "NA"]
[PlyCount "66"]
[EventDate "2019.10.26"]
[EventType "team-tourn"]
[EventCountry "HUN"]
[SourceTitle "playchess.com"]
[Source "ChessBase"]
[SourceQuality "1"]
[TimeControl "5400+30"]

1. Nf3 {[%emt 0:00:00]} d5 {[%emt 0:00:00]} 2. g3 {[%emt 0:00:00]} g6 {[%emt 0:00:00]} 3. Bg2 {[%emt 0:00:02]} Bg7 {[%emt 0:00:00]} 4. d4 {[%emt 0:01:03]} Nf6 {[%emt 0:00:09]} 5. O-O {[%emt 0:00:29]} O-O {[%emt 0:00:20]} 6. c4 {[%emt 0:01:11]} dxc4 {[%emt 0:02:36]} 7. Qa4 {[%emt 0:01:47]} Be6 {[%emt 0:03:06]} 8. Na3 {[%emt 0:03:27]} c6 {[%emt 0:01:08]} 9. Bf4 {[%emt 0:03:38]} b5 {[%emt 0:16:49]} 10. Qd1 {[%emt 0:03:02]} Bd5 {[%emt 0:00:30]} 11. Nc2 {[%emt 0:01:45]} Nbd7 {[%emt 0:02:50]} 12. Rc1 {[%emt 0:01:48]} Nb6 {[%emt 0:03:17]} 13. Qd2 {[%emt 0:03:18]} a5 {[%emt 0:14:41]} 14. Ne3 {[%emt 0:07:27]} Ra7 {[%emt 0:05:01]} 15. Rfd1 {[%emt 0:02:29]} Ne4 {[%emt 0:12:08]} 16. Qc2 {[%emt 0:01:27]} h6 {[%emt 0:01:14]} 17. Ng4 {[%emt 0:12:01]} g5 {[%emt 0:04:26]} 18. Bd2 {[%emt 0:02:08]} Nf6 {[%emt 0:02:39]} 19. Nxf6+ {[%emt 0:00:51]} exf6 {[%emt 0:01:12]} 20. Be3 {[%emt 0:07:48]} Re8 {[%emt 0:02:26]} 21. Rd2 {[%emt 0:08:04]} Be4 {[%emt 0:00:57]} 22. Qd1 {[%emt 0:00:53]} Nd5 {[%emt 0:00:26]} 23. Qe1 {[%emt 0:01:33]} Rae7 {[%emt 0:01:59]} 24. Rdd1 {[%emt 0:02:59]} Nxe3 {[%emt 0:01:07]} 25. fxe3 {[%emt 0:00:10]} Bd5 {[%emt 0:00:30]} 26. Qd2 {[%emt 0:01:22]} h5 {[%emt 0:10:58]} 27. a3 {[%emt 0:01:28]} Bh6 {[%emt 0:01:36]} 28. Kh1 {[%emt 0:01:41]} g4 {[%emt 0:00:23]} 29. Nh4 {[%emt 0:01:27]} Bxe3 {[%emt 0:00:25]} 30. Qc2 {[%emt 0:00:52]} Bxc1 {[%emt 0:00:25]} 31. Qxc1 {[%emt 0:01:00]} Rxe2 {[%emt 0:02:23]} 32. Rg1 {[%emt 0:02:44]} Bxg2+ {[%emt 0:00:40]} 33. Nxg2 {[%emt 0:00:20]} Qxd4 {[%emt 0:00:48]} 0-1

[Event "HUN-chT Youth 2019"]
[Site "Budapest"]
[Date "2019.10.27"]
[Round "3.6"]
[White "Bernath, Bence"]
[Black "Kreiter, Lilla"]
[Result "1-0"]
[ECO "B38"]
[WhiteElo "2004"]
[BlackElo "1280"]
[Annotator "NA"]
[PlyCount "73"]
[EventDate "2019.10.26"]
[EventType "team-tourn"]
[EventCountry "HUN"]
[SourceTitle "playchess.com"]
[Source "ChessBase"]
[SourceQuality "1"]
[TimeControl "5400+30"]

1. e4 {[%emt 0:00:00]} c5 {[%emt 0:00:00]} 2. Nf3 {[%emt 0:00:18]} Nc6 {[%emt 0:00:13]} 3. d4 {[%emt 0:00:33]} cxd4 {[%emt 0:00:23]} 4. Nxd4 {[%emt 0:00:37]} g6 {[%emt 0:00:26]} 5. c4 {[%emt 0:00:31]} Bg7 {[%emt 0:00:39]} 6. Be3 {[%emt 0:00:23]} e6 {[%emt 0:02:04]} 7. Nc3 {[%emt 0:02:29]} Nge7 {[%emt 0:01:48]} 8. Qd2 {[%emt 0:05:41]} O-O {[%emt 0:00:55]} 9. Be2 {[%emt 0:01:30]} d5 {[%emt 0:10:23]} 10. cxd5 {[%emt 0:01:43]} exd5 {[%emt 0:03:55]} 11. exd5 {[%emt 0:00:34]} Nxd5 {[%emt 0:00:42]} 12. Nxd5 {[%emt 0:00:55]} Qxd5 {[%emt 0:02:16]} 13. Bf3 {[%emt 0:01:27]} Qd7 {[%emt 0:02:49]} 14. Nxc6 {[%emt 0:00:55]} bxc6 {[%emt 0:01:09]} 15. Rd1 {[%emt 0:01:18]} Qxd2+ {[%emt 0:01:35]} 16. Rxd2 {[%emt 0:00:07]} Rb8 {[%emt 0:02:10]} 17. O-O {[%emt 0:01:48]} Rxb2 {[%emt 0:03:46]} 18. Rxb2 {[%emt 0:00:54]} Bxb2 {[%emt 0:01:30]} 19. Rb1 {[%emt 0:04:39]} Be5 {[%emt 0:01:22]} 20. Bxa7 {[%emt 0:00:37]} Bf5 {[%emt 0:00:35]} 21. Re1 {[%emt 0:01:38]} Ra8 {[%emt 0:03:17]} 22. Bc5 {[%emt 0:05:34]} Rxa2 {[%emt 0:01:48]} 23. g4 {[%emt 0:00:11]} Bxg4 {[%emt 0:04:10]} 24. Bxg4 {[%emt 0:00:20]} Ra1 {[%emt 0:00:24]} 25. Rxa1 {[%emt 0:00:43]} Bxa1 {[%emt 0:00:09]} 26. Kf1 {[%emt 0:00:54]} Kg7 {[%emt 0:00:26]} 27. Ke2 {[%emt 0:00:37]} Kf6 {[%emt 0:00:20]} 28. Bd7 {[%emt 0:00:42]} Be5 29. h3 {[%emt 0:00:19]} Kg5 {[%emt 0:00:56]} 30. Kf3 {[%emt 0:00:22]} Kh4 {[%emt 0:00:21]} 31. Kg2 {[%emt 0:00:41]} f5 {[%emt 0:00:40]} 32. Bxc6 {[%emt 0:00:20]} g5 {[%emt 0:01:30]} 33. Bd7 {[%emt 0:00:49]} f4 {[%emt 0:00:41]} 34. f3 {[%emt 0:01:07]} Kh5 {[%emt 0:00:32]} 35. Kf2 {[%emt 0:00:39]} h6 {[%emt 0:00:34]} 36. Be8+ {[%emt 0:00:45]} Kh4 {[%emt 0:00:29]} 37. Kg2 {[%emt 0:00:08]} 1-0